bitfinex-derivatives/quotes_SOLF0:USTF0_20250830
["timestamp","ask_amount","ask_price","bid_price","bid_amount"]
[1756512815566,7.22,204.67,204.6,4.09545075]
[1756512817069,7.22,204.67,204.61,7.28]
[1756512817269,7.22,204.67,204.61,7.31366663]
[1756512822170,2.83584195,204.65,204.61,0.03366663]
[1756512822470,10.07584195,204.62,204.61,0.03366663]
[1756512822667,124.59584195,204.62,204.53,7.28]
[1756512822872,10.07584195,204.58,204.52,4.09545075]
[1756512823972,7.27273162,204.57,204.52,11.37545075]
[1756512824170,7.27273162,204.57,204.53,7.28]
[1756512825373,7.24,204.56,204.53,7.28]
[1756512825774,7.24,204.56,204.52,4.09545075]
[1756512826470,7.27273162,204.57,204.51,4.09545075]
[1756512828477,7.27273162,204.57,204.5,4.09545075]
[1756512829776,0.03273162,204.57,204.51,7.28]
[1756512829981,0.03273162,204.57,204.55,7.28]
[1756512831176,0.03273162,204.57,204.53,7.28]
[1756512831376,0.03273162,204.57,204.54,7.28]
[1756512831580,0.03273162,204.57,204.53,4.09545075]
[1756512831771,0.03273162,204.57,204.54,7.28]
[1756512831972,0.03273162,204.57,204.53,4.09545075]
[1756512832179,0.03273162,204.57,204.54,7.28]
[1756512832375,0.03273162,204.57,204.53,4.09545075]
[1756512832576,0.03273162,204.57,204.54,7.28]
[1756512832881,0.03273162,204.57,204.53,4.09545075]
[1756512833679,0.03273162,204.57,204.54,7.28]
[1756512834079,0.03273162,204.57,204.53,4.09545075]
[1756512834279,0.03273162,204.57,204.54,7.28]
[1756512835986,0.03273162,204.57,204.53,4.09545075]
[1756512836388,0.03273162,204.57,204.53,7.28]
[1756512836690,0.03273162,204.57,204.52,4.09545075]
[1756512836888,0.03273162,204.57,204.53,7.28]
[1756512837089,0.03273162,204.57,204.52,4.09545075]
[1756512837689,0.03273162,204.57,204.54,7.28]
[1756512837885,0.03273162,204.57,204.53,4.09545075]
[1756512838990,0.03273162,204.57,204.54,7.28]
[1756512839687,0.03273162,204.57,204.54,11.37545075]
[1756512839991,0.03273162,204.57,204.56,10.11584195]
[1756512840191,0.03273162,204.57,204.56,14.2112927]
[1756512840485,0.8505646,204.69,204.57,7.28]
[1756512840692,2.83584195,204.65,204.58,4.09232572]
[1756512840886,7.24,204.64,204.55,11.37232572]
[1756512841093,2.83584195,204.65,204.55,11.37232572]
[1756512841288,2.83584195,204.62,204.55,7.28]
[1756512841594,7.24,204.61,204.55,7.28]
[1756512841788,2.83584195,204.62,204.56,0.03526738]
[1756512842183,7.24,204.61,204.56,0.03526738]
[1756512842383,2.83584195,204.62,204.56,0.03526738]
[1756512843389,10.07584195,204.62,204.56,0.03526738]
[1756512847891,2.83584195,204.59,204.56,0.03526738]
[1756512848089,7.33,204.58,204.56,0.03526738]
[1756512848800,7.33,204.56,204.47,4.09232572]
[1756512848995,7.33,204.52,204.46,4.09232572]
[1756512849192,7.33,204.52,204.45,4.09232572]
[1756512849688,7.33,204.52,204.43,7.64]
[1756512849689,7.33,204.52,204.44,4.09232572]
[1756512849892,7.33,204.49,204.43,11.73232572]
[1756512850093,7.33,204.49,204.43,7.64]
[1756512853899,0.0325103,204.5,204.43,7.64]
[1756512855905,0.0325103,204.5,204.44,7.64]
[1756512861105,0.0325103,204.5,204.44,10.47584195]
[1756512861304,0.0325103,204.5,204.44,2.83584195]
[1756512861706,0.0325103,204.5,204.45,7.64]
[1756512862207,0.0325103,204.5,204.46,7.64]
[1756512862408,0.0325103,204.5,204.47,2.83584195]
[1756512862608,0.0325103,204.5,204.48,7.64]
[1756512863703,0.0325103,204.5,204.47,2.83584195]
[1756512864608,0.0325103,204.5,204.48,7.64]
[1756512864807,0.0325103,204.5,204.47,2.83584195]
[1756512865306,0.0325103,204.5,204.48,7.64]
[1756512865703,0.0325103,204.5,204.47,2.83584195]
[1756512866106,0.0325103,204.5,204.48,7.64]
[1756512866307,0.0325103,204.5,204.47,6.92816767]
[1756512866999,0.0325103,204.5,204.48,7.64]
[1756512867607,0.0325103,204.5,204.47,6.92816767]
[1756512867801,0.0325103,204.5,204.48,7.64]
[1756512868205,0.0325103,204.5,204.47,2.83584195]
[1756512868905,0.0325103,204.5,204.48,7.64]
[1756512869509,0.0325103,204.5,204.47,2.83584195]
[1756512869911,0.0325103,204.5,204.48,7.64]
[1756512870208,0.0325103,204.5,204.47,2.83584195]
[1756512870710,0.0325103,204.5,204.48,7.64]
[1756512870910,0.0325103,204.5,204.47,2.83584195]
[1756512871110,0.0325103,204.5,204.48,7.64]
[1756512871509,0.0325103,204.5,204.47,6.93756869]
[1756512871715,0.0325103,204.5,204.48,7.64]
[1756512871912,0.0325103,204.5,204.47,2.83584195]
[1756512872212,0.0325103,204.5,204.48,7.64]
[1756512872410,0.0325103,204.5,204.47,2.83584195]
[1756512873011,0.0325103,204.5,204.48,7.64]
[1756512873209,0.0325103,204.5,204.46,7.64]
[1756512873606,7.33,204.49,204.46,7.64]
[1756512874011,7.3625103,204.5,204.44,11.74172674]
[1756512874403,7.3625103,204.5,204.42,4.10172674]
[1756512879313,2.83584195,204.43,204.42,4.10172674]
[1756512879513,2.83584195,204.44,204.36,4.10172674]
[1756512879717,7.83,204.43,204.35,11.89172674]
[1756512879917,0.03498467,204.42,204.35,11.89172674]
[1756512880115,0.03498467,204.42,204.35,7.79]
[1756512882117,10.66584195,204.4,204.33,4.10172674]
[1756512882316,0.03498467,204.42,204.32,11.89172674]
[1756512882623,2.83584195,204.37,204.32,4.10172674]
[1756512882821,7.83,204.36,204.32,4.10172674]
[1756512883019,10.66584195,204.37,204.3,4.10172674]
[1756512883220,0.03493227,204.36,204.3,4.10172674]
[1756512883827,0.03493227,204.36,204.29,7.79]
[1756512884423,7.83,204.35,204.24,4.10172674]
[1756512884627,0.03493227,204.36,204.26,11.89172674]
[1756512884924,2.83584195,204.38,204.28,11.89172674]
[1756512885125,0.0355337,204.33,204.28,6.93756869]
[1756512885325,0.0355337,204.33,204.31,2.83584195]
[1756512885520,0.0355337,204.33,204.32,7.79]
[1756512885719,0.0355337,204.33,204.32,11.89172674]
[1756512885922,34.71,204.42,204.33,7.79]
[1756512887221,34.71,204.42,204.35,0.0322064]
[1756512889428,2.83584195,204.45,204.36,7.79]
[1756512890029,2.83584195,204.45,204.38,0.03289615]
[1756512890626,7.83,204.44,204.38,0.03289615]
[1756512893131,7.83,204.44,204.38,7.82289615]
[1756512896728,7.83,204.58,204.38,7.82289615]
[1756512896931,7.83,204.49,204.4,7.79]
[1756512897531,7.83,204.49,204.42,0.0320634]
[1756512901237,7.83,204.49,204.43,7.79]
[1756512902736,10.66584195,204.49,204.42,0.0320634]
[1756512905239,7.83,204.45,204.42,0.0320634]
[1756512905533,7.83,204.42,204.32,4.09651805]
[1756512905738,7.83,204.42,204.31,11.88651805]
[1756512905933,7.83,204.42,204.32,4.09651805]
[1756512906738,7.33673523,204.39,204.31,11.88651805]
[1756512907540,7.3,204.38,204.31,7.79]
[1756512910838,2.83584195,204.37,204.31,7.79]
[1756512911734,7.3,204.36,204.28,4.09651805]
[1756512911938,7.3,204.36,204.27,4.09651805]
[1756512912244,7.3,204.33,204.25,4.09651805]
[1756512913045,7.3,204.33,204.23,4.09651805]
[1756512913543,7.3,204.33,204.22,11.61651805]
[1756512913743,0.03357454,204.3,204.24,7.52]
[1756512914046,0.03357454,204.3,204.24,11.61651805]
[1756512914240,0.03357454,204.3,204.26,11.61651805]
[1756512914448,0.03357454,204.3,204.27,4.09651805]
[1756512914642,0.03357454,204.3,204.29,7.52]
[1756512915844,2.83584195,204.4,204.3,7.52]
[1756512916150,7.3,204.41,204.3,7.52]
[1756512916345,10.13584195,204.41,204.3,4.09651805]
[1756512916548,10.13584195,204.41,204.31,10.35584195]
[1756512916944,10.13584195,204.41,204.31,14.45236]
[1756512917149,10.13584195,204.41,204.34,0.0363928]
[1756512917845,7.3,204.41,204.34,7.5563928]
[1756512922046,7.3,204.41,204.34,0.0363928]
[1756512923057,7.3,204.36,204.34,0.0363928]
[1756512923453,124.71584195,204.37,204.34,0.0363928]
[1756512923654,7.78,204.36,204.34,0.0363928]
[1756512923855,7.3,204.35,204.34,0.0363928]
[1756512924453,121.94,204.41,204.34,0.0363928]
[1756512924649,7.3,204.37,204.34,0.0363928]
[1756512924851,7.3,204.4,204.34,7.5563928]
[1756512925056,7.3,204.4,204.34,0.0363928]
[1756512925653,2.83584195,204.38,204.34,0.0363928]
[1756512925851,7.3,204.37,204.34,0.0363928]
[1756512926254,2.83584195,204.38,204.34,0.0363928]
[1756512926255,10.13584195,204.35,204.34,0.0363928]
[1756512927655,7.3,204.34,204.26,11.62062482]
[1756512927856,2.83584195,204.32,204.26,11.62062482]
[1756512928461,2.83584195,204.32,204.26,4.10062482]
[1756512928662,2.83584195,204.29,204.23,4.10062482]
[1756512929050,2.83584195,204.29,204.22,11.62062482]
[1756512929561,2.83584195,204.26,204.2,4.10062482]
[1756512930056,2.83584195,204.4,204.21,7.52]
[1756512930252,19.01554875,204.61,204.24,7.52]
[1756512930253,7.3,204.44,204.24,7.52]
[1756512930455,2.83584195,204.35,204.25,11.62062482]
[1756512930656,7.3,204.45,204.28,2.83584195]
[1756512930858,328.8,204.46,204.3,7.52]
[1756512930859,2.83584195,204.4,204.3,7.52]
[1756512931059,2.83584195,204.4,204.31,11.62062482]
[1756512931459,2.83584195,204.4,204.31,7.52]
[1756512931863,10.13584195,204.4,204.31,7.52]
[1756512933269,7.3,204.4,204.31,11.62062482]
[1756512935159,7.3,204.4,204.31,7.52]
[1756512935665,7.3,204.4,204.31,11.62062482]
[1756512935862,79.55157537,204.45,204.33,4.10062482]
[1756512936062,7.3,204.41,204.34,7.52]
[1756512936268,7.3,204.41,204.3,11.62062482]
[1756512936471,4.55157537,204.39,204.3,11.62062482]
[1756512936668,7.3,204.38,204.3,7.52]
[1756512937561,7.3,204.38,204.27,4.10062482]
[1756512938274,7.3,204.38,204.28,7.83]
[1756512938475,46.05157537,204.41,204.3,11.93062482]
[1756512938974,7.41,204.4,204.3,7.83]
[1756512939971,7.41,204.37,204.3,7.83]
[1756512940173,7.41,204.37,204.27,11.93062482]
[1756512941172,7.41,204.34,204.27,7.83]
[1756512941571,7.41,204.34,204.26,4.10062482]
[1756512941771,7.41,204.34,204.25,7.83]
[1756512941973,7.41,204.34,204.25,11.93062482]
[1756512942168,7.41,204.34,204.26,4.10062482]
[1756512942873,7.41,204.34,204.25,11.93062482]
[1756512944774,4.55157537,204.35,204.25,11.93062482]
[1756512944971,7.41,204.31,204.23,4.10062482]
[1756512945481,7.41,204.31,204.22,4.10062482]
[1756512946685,7.41,204.31,204.23,4.10062482]
[1756512947383,7.41,204.28,204.21,11.93062482]
[1756512947581,7.41,204.28,204.19,4.10062482]
[1756512948284,7.41,204.28,204.18,4.10062482]
[1756512949383,4.55157537,204.26,204.17,11.93062482]
[1756512949685,7.41,204.25,204.17,11.93062482]
[1756512950479,7.41,204.25,204.17,7.83]
[1756512950680,7.41,204.25,204.17,11.93062482]
[1756512951591,4.55157537,204.28,204.18,7.83]
[1756512951794,4.55157537,204.28,204.19,7.83]
[1756512951990,4.55157537,204.32,204.21,4.10062482]
[1756512952194,7.41,204.31,204.21,4.10062482]
[1756512952395,7.41,204.31,204.2,4.10062482]
[1756512952694,4.55157537,204.26,204.19,11.93062482]
[1756512953395,2.84899948,204.25,204.19,11.93062482]
[1756512954496,2.84899948,204.25,204.19,7.83]
[1756512955492,7.41,204.28,204.2,7.83]
[1756512955493,10.25899948,204.28,204.2,7.83]
[1756512955696,7.41,204.28,204.2,7.83]
[1756512955988,10.25899948,204.28,204.2,7.83]
[1756512957689,7.41,204.28,204.2,7.83]
[1756512957893,2.84899948,204.27,204.2,7.83]
[1756512961097,2.84899948,204.24,204.2,7.83]
[1756512961597,2.84899948,204.24,204.17,7.83]
[1756512961790,10.25899948,204.27,204.18,7.83]
[1756512962495,7.41,204.27,204.18,7.83]
[1756512962696,7.41,204.27,204.19,7.83]
[1756512962897,2.84899948,204.28,204.2,7.83]
[1756512963097,2.84899948,204.32,204.21,4.10062482]
[1756512963299,2.84899948,204.32,204.22,7.83]
[1756512963499,2.84899948,204.32,204.23,4.10062482]
[1756512963700,2.84899948,204.32,204.24,7.83]
[1756512968801,7.46,204.31,204.24,7.83]
[1756512970205,2.84899948,204.29,204.21,4.10062482]
[1756512970403,2.84899948,204.29,204.21,11.29062482]
[1756512971805,7.46,204.31,204.21,11.29062482]
[1756512972006,2.84899948,204.3,204.21,11.29062482]
[1756512973907,2.84899948,204.3,204.22,7.19]
[1756512974108,2.84899948,204.3,204.22,11.29062482]
[1756512976508,2.84899948,204.3,204.22,7.19]
[1756512977302,2.84899948,204.3,204.22,11.29062482]
[1756512977507,2.84899948,204.3,204.22,7.19]
[1756512977708,2.84899948,204.3,204.22,11.29062482]
[1756512977908,7.46,204.35,204.24,11.29062482]
[1756512978104,2.84899948,204.34,204.25,7.19]
[1756512978304,7.46,204.33,204.25,7.19]
[1756512979910,10.30899948,204.33,204.25,7.19]
[1756512980302,10.30899948,204.33,204.25,11.29062482]
[1756512981308,37.82,204.36,204.25,11.29062482]
[1756512981511,7.46,204.29,204.22,11.29062482]
[1756512983608,7.46,204.29,204.23,4.10062482]
[1756512984511,7.46,204.29,204.24,11.29062482]
[1756512984808,2.84899948,204.3,204.24,4.10062482]
[1756512985012,7.46,204.29,204.23,4.10062482]
[1756512985311,7.46,204.29,204.22,11.29062482]
[1756512986313,7.46,204.29,204.23,4.10062482]
[1756512986910,42.52899948,204.34,204.25,4.10062482]
[1756512989108,10.30899948,204.31,204.25,4.10062482]
[1756512989309,10.30899948,204.31,204.24,11.29062482]
[1756512994212,10.30899948,204.31,204.24,7.19]
[1756512994514,10.30899948,204.31,204.24,11.29062482]
[1756512995318,7.46,204.3,204.24,11.29062482]
[1756512995613,7.46,204.3,204.24,4.10062482]
[1756512996916,7.46,204.3,204.23,4.10062482]
[1756512997713,7.93,204.37,204.29,7.65]
[1756512997911,7.93,204.37,204.31,4.1204686]
[1756512998217,7.93,204.37,204.3,4.1204686]
[1756512998611,7.93,204.37,204.31,4.11907406]
[1756512998816,7.93,204.37,204.3,4.11907406]
[1756512999018,2.84899948,204.36,204.3,4.11907406]
[1756512999216,2.84899948,204.33,204.28,4.11907406]
[1756512999418,7.93,204.32,204.27,11.76907406]
[1756512999814,35.36,204.31,204.28,11.76907406]
[1756513000014,2.84899948,204.34,204.29,4.11907406]
[1756513000214,7.93,204.33,204.28,11.76907406]
[1756513000615,7.93,204.33,204.29,7.65]
[1756513000918,122.0,204.32,204.29,7.65]
[1756513001120,2.84899948,204.35,204.28,4.11907406]
[1756513001418,122.0,204.34,204.28,11.76907406]
[1756513001816,129.93,204.34,204.28,11.76907406]
[1756513002121,129.93,204.34,204.28,7.65]
[1756513003623,129.93,204.34,204.27,4.11907406]
[1756513003918,2.84899948,204.32,204.27,4.11907406]
[1756513004315,7.93,204.28,204.24,4.11907406]
[1756513004621,7.93,204.26,204.24,4.11907406]
[1756513004821,122.12,204.26,204.24,4.11907406]
[1756513005321,7.93,204.28,204.24,4.11907406]
[1756513005521,41.11,204.27,204.24,4.11907406]
[1756513005721,7.93,204.26,204.24,4.11907406]
[1756513006221,10.77899948,204.29,204.24,11.76907406]
[1756513006423,7.93,204.27,204.25,4.11907406]
[1756513006626,7.93,204.27,204.24,4.11907406]
[1756513007122,7.93,204.27,204.25,4.11907406]
[1756513007819,10.77899948,204.29,204.25,4.11907406]
[1756513008023,69.44,204.26,204.25,4.11907406]
[1756513008823,69.44,204.26,204.24,4.11907406]
[1756513010221,5.3818663,204.38,204.24,4.11907406]
[1756513010519,329.0,204.39,204.25,4.11907406]
[1756513010520,2.84899948,204.31,204.25,4.11907406]
[1756513010720,55.02,204.3,204.25,4.11907406]
[1756513011115,7.93,204.29,204.25,4.11907406]
[1756513011714,7.93,204.3,204.25,4.11907406]
[1756513011923,87.62,204.28,204.25,4.11907406]
[1756513012123,95.55,204.28,204.25,4.11907406]
[1756513012823,7.93,204.27,204.25,4.11907406]
[1756513017628,35.34,204.29,204.25,4.11907406]
[1756513017827,7.93,204.28,204.25,4.11907406]
[1756513018028,2.84899948,204.31,204.25,4.11907406]
[1756513018230,124.84899948,204.34,204.26,11.76907406]
[1756513018419,124.84899948,204.34,204.28,4.11907406]
[1756513018722,122.0,204.33,204.28,4.11907406]
[1756513018925,129.93,204.33,204.28,11.76907406]
[1756513019530,10.77899948,204.34,204.28,11.76907406]
[1756513019729,129.93,204.33,204.28,11.76907406]
[1756513020329,7.93,204.32,204.28,11.76907406]
[1756513020531,329.02,204.36,204.28,4.11907406]
[1756513020830,7.93,204.35,204.31,11.76907406]
[1756513021028,7.93,204.35,204.31,4.11907406]
[1756513021224,7.93,204.35,204.3,4.11907406]
[1756513021426,458.95,204.36,204.3,4.11907406]
[1756513021628,7.93,204.36,204.3,4.11907406]
[1756513021825,2.84899948,204.39,204.31,11.76907406]
[1756513022030,2.84899948,204.39,204.32,4.11907406]
[1756513022230,27.28,204.38,204.32,4.11907406]
[1756513022831,2.84899948,204.39,204.32,4.11907406]
[1756513023031,62.4,204.38,204.32,4.11907406]
[1756513023231,2.84899948,204.39,204.33,11.76907406]
[1756513023426,7.93,204.4,204.33,11.76907406]
[1756513023636,7.93,204.4,204.34,4.11907406]
[1756513024030,10.77899948,204.39,204.33,4.11907406]
[1756513025037,43.65,204.39,204.33,11.76907406]
[1756513026436,43.65,204.39,204.33,7.65]
[1756513026836,7.93,204.39,204.33,7.65]
[1756513027238,35.5,204.41,204.33,11.76907406]
[1756513027434,122.58899948,204.42,204.34,11.62907406]
[1756513027636,10.22899948,204.42,204.34,11.62907406]
[1756513027833,7.38,204.42,204.35,4.11907406]
[1756513028342,7.38,204.42,204.36,0.03140111]
[1756513028937,0.85165743,204.44,204.36,0.03140111]
[1756513028938,0.03243656,204.41,204.36,0.03140111]
[1756513029434,7.38,204.4,204.36,0.03140111]
[1756513029635,0.03243656,204.41,204.36,0.03140111]
[1756513029837,7.38,204.4,204.36,0.03140111]
[1756513030139,0.03243656,204.41,204.36,0.03140111]
[1756513030642,7.38,204.39,204.36,0.03140111]
[1756513030837,7.38,204.38,204.36,0.03140111]
[1756513032339,121.94,204.39,204.36,0.03140111]
[1756513032535,7.38,204.38,204.36,0.03140111]
[1756513032739,121.94,204.39,204.36,0.03140111]
[1756513032940,7.38,204.38,204.36,0.03140111]
[1756513033640,129.32,204.38,204.36,0.03140111]
[1756513034643,7.38,204.37,204.36,0.03140111]
[1756513039642,0.03243656,204.41,204.36,0.03140111]
[1756513039947,121.97243656,204.41,204.36,0.03140111]
[1756513040141,121.97243656,204.41,204.37,7.51]
[1756513040338,121.97243656,204.41,204.36,0.03140111]
[1756513040539,121.97243656,204.41,204.37,7.51]
[1756513041343,121.97243656,204.41,204.36,0.03140111]
[1756513041540,121.97243656,204.41,204.37,7.51]
[1756513042846,0.03243656,204.41,204.37,7.51]
[1756513043040,121.95243656,204.41,204.36,0.03140111]
[1756513043247,121.95243656,204.41,204.37,7.51]
[1756513043738,129.33243656,204.41,204.37,7.51]
[1756513043941,7.41243656,204.41,204.37,7.51]
[1756513044150,129.33243656,204.41,204.37,7.51]
[1756513046847,7.38,204.4,204.37,7.51]
[1756513047247,129.28,204.4,204.37,7.51]
[1756513049454,7.38,204.4,204.37,7.51]
[1756513049650,129.28,204.4,204.37,7.51]
[1756513051555,7.38,204.4,204.37,7.51]
[1756513051756,129.26,204.4,204.37,7.51]
[1756513052750,7.38,204.4,204.37,7.51]
[1756513052957,129.26,204.4,204.37,7.51]
[1756513057060,121.88,204.4,204.37,7.51]
[1756513057260,129.14,204.4,204.37,7.51]
[1756513059856,7.26,204.39,204.37,7.51]
[1756513061364,121.86,204.4,204.37,11.98907406]
[1756513061564,129.12,204.4,204.37,11.98907406]
[1756513063063,129.12,204.4,204.38,4.11907406]
[1756513063263,7.26,204.39,204.37,4.11907406]
[1756513064262,7.26,204.39,204.38,4.11907406]
[1756513065065,7.29243656,204.41,204.38,11.98907406]
[1756513065262,0.03243656,204.41,204.39,7.87]
[1756513065458,0.03243656,204.41,204.39,13.330601]
[1756513065662,0.03243656,204.41,204.4,7.87]
[1756513066064,0.03243656,204.41,204.4,10.71899948]
[1756513067169,7.26,204.5,204.41,7.87]
[1756513067369,7.26,204.49,204.46,4.11241901]
[1756513067570,121.82,204.5,204.46,4.11241901]
[1756513067769,7.26,204.49,204.46,4.11241901]
[1756513067967,7.26,204.49,204.47,4.11241901]
[1756513069369,7.26,204.49,204.46,4.11241901]
[1756513069671,2.84899948,204.57,204.46,11.98241901]
[1756513069672,7.26,204.56,204.46,11.98241901]
[1756513069969,7.26,204.54,204.46,11.98241901]
[1756513070361,7.26,204.54,204.49,0.03462655]
[1756513070764,121.82,204.55,204.49,0.03462655]
[1756513070969,0.85112627,204.58,204.49,0.03462655]
[1756513071164,129.06,204.57,204.49,0.03462655]
[1756513072667,7.26,204.55,204.49,0.03462655]
[1756513073975,10.10899948,204.55,204.49,0.03462655]
[1756513074371,7.26,204.55,204.49,0.03462655]
[1756513074674,7.26,204.57,204.49,0.03462655]
[1756513074866,7.26,204.55,204.49,0.03462655]
[1756513075574,121.76,204.54,204.49,0.03462655]
[1756513076073,7.26,204.53,204.49,7.90462655]
[1756513076274,7.26,204.57,204.49,0.03462655]
[1756513076475,7.26,204.55,204.49,0.03462655]
[1756513081181,121.74,204.54,204.49,0.03462655]
[1756513081584,7.26,204.53,204.49,0.03462655]
[1756513081782,121.74,204.54,204.49,0.03462655]
[1756513081979,7.26,204.53,204.49,0.03462655]
[1756513082181,121.74,204.54,204.49,0.03462655]
[1756513082687,121.74,204.53,204.49,0.03462655]
[1756513082890,129.0,204.53,204.49,7.90462655]
[1756513083285,121.74,204.53,204.49,0.03462655]
[1756513083483,7.26,204.52,204.49,0.03462655]
[1756513084683,121.74,204.53,204.49,0.03462655]
[1756513084887,7.26,204.52,204.49,0.03462655]
[1756513085087,121.74,204.53,204.49,0.03462655]
[1756513085281,7.26,204.52,204.49,0.03462655]
[1756513085887,2.84899948,204.51,204.49,0.03462655]
[1756513086086,7.26,204.5,204.49,0.03462655]
[1756513088993,0.85112627,204.58,204.5,7.67]
[1756513089196,7.62,204.68,204.58,7.67]
[1756513089396,7.62,204.68,204.6,2.84899948]
[1756513089797,7.62,204.68,204.62,0.03707821]
[1756513095104,7.62,204.68,204.62,10.55607769]
[1756513096607,7.62,204.72,204.65,2.84899948]
[1756513096802,7.62,204.72,204.65,10.51899948]
[1756513097303,7.62,204.72,204.66,0.03273878]
[1756513097700,10.46899948,204.72,204.66,0.03273878]
[1756513098396,7.62,204.68,204.51,2.84899948]
[1756513098606,2.84899948,204.58,204.48,2.84899948]
[1756513098808,7.62,204.57,204.48,2.84899948]
[1756513099698,7.62,204.57,204.5,0.03607564]
[1756513099900,2.84899948,204.54,204.5,0.03607564]
[1756513100508,7.62,204.53,204.5,0.03607564]
[1756513100704,2.84899948,204.51,204.5,0.03607564]
[1756513100910,23.86899948,204.51,204.5,0.03607564]
[1756513101105,7.62,204.51,204.5,0.03607564]
[1756513102705,2.84899948,204.53,204.5,0.03607564]
[1756513102912,7.62,204.52,204.5,0.03607564]
[1756513104511,2.84899948,204.57,204.5,0.03607564]
[1756513105011,2.84899948,204.57,204.46,7.67]
[1756513105212,2.84899948,204.57,204.51,0.03239779]
[1756513105610,7.62,204.59,204.51,0.03239779]
[1756513105812,44.32,204.59,204.51,0.03239779]
[1756513106006,7.62,204.59,204.51,0.03239779]
[1756513106213,7.62,204.59,204.52,7.67]
[1756513106913,79.28,204.62,204.52,7.67]
[1756513107817,79.28,204.62,204.51,0.03239779]
[1756513107818,7.62,204.59,204.51,0.03239779]
[1756513108011,2.84899948,204.57,204.51,0.03239779]
[1756513108212,10.46899948,204.57,204.51,0.03239779]
[1756513110612,2.84899948,204.54,204.51,0.03239779]
[1756513110817,2.84899948,204.6,204.51,0.03239779]
[1756513111019,7.62,204.52,204.51,0.03239779]
[1756513111814,2.84899948,204.56,204.51,0.03239779]
[1756513112009,2.84899948,204.59,204.51,0.03239779]
[1756513112214,2.84899948,204.59,204.49,7.67]
[1756513112417,2.84899948,204.59,204.53,0.03498167]
[1756513114521,10.46899948,204.6,204.53,0.03498167]
[1756513115321,7.62,204.6,204.53,0.03498167]
[1756513119022,7.65,204.65,204.54,7.64]
[1756513119218,122.08,204.64,204.54,7.64]
[1756513119422,7.65,204.63,204.54,7.64]
[1756513119622,7.65,204.63,204.57,0.03528259]
[1756513120721,7.65,204.67,204.58,7.64]
[1756513121217,0.03151642,204.65,204.58,7.64]
[1756513121424,0.03151642,204.65,204.58,16.29558987]
[1756513121616,0.03151642,204.65,204.59,7.64]
[1756513122328,7.68151642,204.65,204.57,0.03528259]
[1756513125721,7.65,204.62,204.57,0.03528259]
[1756513125927,4.54317086,204.63,204.57,0.03528259]
[1756513126226,7.65,204.62,204.57,0.03528259]
[1756513126627,4.54317086,204.63,204.57,0.03528259]
[1756513126925,7.65,204.62,204.57,0.03528259]
[1756513127326,4.54317086,204.63,204.57,0.03528259]
[1756513128131,7.65,204.62,204.57,0.03528259]
[1756513128524,7.65,204.59,204.47,4.11241901]
[1756513128727,4.54317086,204.6,204.46,11.75241901]
[1756513129032,7.65,204.57,204.46,11.75241901]
[1756513129929,0.03194269,204.54,204.46,11.75241901]
[1756513130427,7.68194269,204.54,204.46,11.75241901]
[1756513130634,7.68194269,204.54,204.46,7.64]
[1756513131332,7.68194269,204.54,204.46,11.75241901]
[1756513134630,7.68194269,204.54,204.47,4.11241901]
[1756513135130,0.03194269,204.54,204.48,7.64]
[1756513136337,7.68194269,204.54,204.48,7.64]
[1756513139337,0.03194269,204.54,204.48,11.75241901]
[1756513141331,7.65,204.53,204.47,4.11241901]
[1756513141534,2.84086113,204.49,204.43,4.11241901]
[1756513141732,7.65,204.48,204.41,4.11241901]
[1756513142139,0.03674141,204.47,204.41,4.11241901]
[1756513142633,7.65,204.45,204.41,4.11241901]
[1756513142842,10.49086113,204.46,204.39,11.75241901]
[1756513143533,0.03674141,204.47,204.4,4.11241901]
[1756513143734,0.03674141,204.47,204.41,4.11241901]
[1756513143935,0.03674141,204.47,204.4,4.11241901]
[1756513144135,2.87760254,204.47,204.4,4.11241901]